bitfinex/quotes_ETHUSD_20230404
["timestamp","ask_amount","ask_price","bid_price","bid_amount"]
[1680606445291,0.22605,1841.3,1841.0,0.01955499]
[1680606445586,2.45197,1841.6,1841.0,0.04106703]
[1680606445892,0.008,1841.7,1841.5,18.741]
[1680606446049,0.19544,1842.0,1841.7,5.0]
[1680606446248,0.19543,1842.1,1841.7,0.008]
[1680606446450,0.39077,1842.5,1841.4,5.008]
[1680606446451,0.19544,1842.0,1841.4,5.008]
[1680606446767,2.24144,1842.0,1841.4,5.008]
[1680606446970,0.224144,1841.9,1841.4,5.008]
[1680606447189,0.419604,1841.9,1841.4,5.008]
[1680606447390,0.19546,1841.9,1841.4,5.008]
[1680606447758,0.19546,1841.9,1841.5,5.0]
[1680606448075,5.18,1842.2,1841.5,5.00745021]
[1680606448275,0.19544,1842.0,1841.6,5.0]
[1680606448480,0.19544,1842.0,1841.6,5.00745021]
[1680606448809,0.008,1842.2,1842.0,5.0]
[1680606448954,0.008,1842.7,1842.6,14.0]
[1680606449149,0.006,1843.1,1843.0,5.0]
[1680606449408,0.2541952,1843.2,1843.1,8.996]
[1680606449610,0.2541952,1843.2,1843.1,8.99745021]
[1680606449769,0.2541952,1843.2,1843.1,14.74445021]
[1680606450108,0.2541952,1843.2,1843.1,8.89745021]
[1680606450269,3.007,1843.4,1843.1,0.00145021]
[1680606450596,2.907,1843.4,1843.2,8.896]
[1680606450797,3.10229,1843.4,1843.2,0.00745021]
[1680606451131,0.505529,1843.3,1843.0,0.00145021]
[1680606451264,0.52849809,1843.7,1843.5,8.896]
[1680606451265,0.002,1843.6,1843.5,8.896]
[1680606451466,0.1952,1844.2,1843.7,8.896]
[1680606451679,0.0105005,1844.4,1844.3,8.896]
[1680606451996,0.0105005,1844.4,1844.3,14.64445021]
[1680606451997,0.6735629,1844.4,1844.3,14.64445021]
[1680606452179,0.6735629,1844.4,1844.3,8.90345021]
[1680606452558,0.4073177,1844.8,1844.6,8.896]
[1680606452794,0.4073177,1844.8,1844.7,3.274]
[1680606452795,0.1573177,1844.8,1844.7,3.274]
[1680606452993,0.1573177,1844.8,1844.7,14.015]
[1680606453196,0.0003177,1844.8,1844.7,5.74245021]
[1680606453497,0.104,1845.6,1844.7,5.74245021]
[1680606453498,0.002,1845.4,1845.1,9.0]
[1680606453658,0.19506,1845.6,1845.1,14.00745021]
[1680606453857,0.19506,1845.6,1845.1,0.00745021]
[1680606454069,0.39012,1845.6,1844.9,0.002]
[1680606454266,2.30396141,1845.9,1844.9,4.326]
[1680606454267,0.61542875,1845.5,1844.9,4.326]
[1680606454467,0.13796141,1845.9,1845.5,0.5]
[1680606454689,0.19505,1845.7,1845.2,1.7169375]
[1680606454909,0.23101253,1845.9,1845.4,5.0]
[1680606454910,0.28299141,1845.9,1845.4,5.0]
[1680606455108,0.28299141,1845.9,1845.4,0.006]
[1680606455109,0.3755412,1845.9,1845.4,0.006]
[1680606455319,0.03796141,1845.9,1845.4,5.0]
[1680606455525,0.03796141,1845.9,1845.3,8.85745021]
[1680606455720,0.03796141,1845.9,1845.8,5.0]
[1680606455924,0.00096141,1845.9,1845.8,5.0]
[1680606456125,0.006,1846.4,1846.3,8.70945021]
[1680606456425,15.99910815,1848.0,1847.2,13.70945021]
[1680606456643,0.002,1847.8,1847.2,0.002]
[1680606456921,4.75130703,1848.0,1847.2,0.006]
[1680606456922,0.19481,1848.0,1847.2,0.006]
[1680606457228,0.002,1848.1,1847.4,0.5]
[1680606457536,2.164,1848.3,1847.8,5.0]
[1680606457704,2.164,1848.7,1847.8,0.002]
[1680606458026,0.0168468,1848.6,1847.9,0.50597333]
[1680606458185,2.164,1849.2,1847.9,0.30597333]
[1680606458387,2.164,1848.7,1847.9,0.25]
[1680606458591,0.19475,1848.6,1848.0,5.01550359]
[1680606458819,2.35875,1848.6,1848.0,5.01750359]
[1680606459014,2.35875,1848.5,1848.1,5.0]
[1680606459200,2.594625,1848.5,1848.1,5.008]
[1680606459407,0.008,1849.0,1848.3,5.0]
[1680606459598,0.19477,1848.4,1848.3,0.002]
[1680606459797,0.253198,1848.4,1848.3,5.0]
[1680606459995,0.253198,1848.4,1848.3,0.008]
[1680606460219,0.00055634,1848.4,1848.3,9.0]
[1680606460419,0.00055634,1848.4,1848.3,0.002]
[1680606460620,0.00055634,1848.4,1848.3,0.5]
[1680606460793,0.00055634,1848.4,1846.9,5.0]
[1680606460794,4.49467634,1848.4,1846.9,5.0]
[1680606461008,0.44946763,1848.3,1847.0,14.0]
[1680606461203,1.21216,1848.0,1847.3,5.0]
[1680606461400,0.004,1848.0,1847.5,5.0]
[1680606461739,0.17316,1848.0,1847.6,14.0]
[1680606461944,0.53392907,1848.4,1847.6,14.0]
[1680606461945,0.004,1848.7,1848.6,5.0]
[1680606462155,2.162,1849.3,1848.9,9.0]
[1680606462295,0.106,1849.8,1849.6,3.27]
[1680606462296,0.14029644,1849.7,1849.6,3.27]
[1680606462510,2.162,1850.8,1849.9,3.27]
[1680606462709,2.3349,1850.8,1850.1,3.218]
[1680606462907,0.840573,1850.8,1850.0,0.5]
[1680606463148,0.5354912,1850.8,1849.6,1.71062318]
[1680606463312,2.155,1850.9,1850.5,5.0]
[1680606463640,0.17288,1851.0,1850.8,1.81577343]
[1680606463833,2.112,1850.8,1850.6,5.002]
[1680606464018,0.006,1851.3,1850.6,0.002]
[1680606464219,0.17289,1850.8,1850.3,0.002]
[1680606464421,0.006,1851.5,1851.0,5.0]
[1680606464674,0.13847296,1852.4,1851.4,6.318]
[1680606464963,5.03774915,1854.3,1852.3,5.0]
[1680606464964,2.158,1852.8,1852.3,5.0]
[1680606465154,11.37666039,1852.8,1852.5,5.0]
[1680606465359,12.51632643,1852.8,1852.5,0.004]
[1680606465665,0.004,1853.8,1852.0,0.004]
[1680606465666,0.5293153,1853.0,1852.0,0.004]
[1680606465949,2.2,1852.3,1851.5,0.65529319]
[1680606466163,2.2,1852.3,1850.7,1.89803492]
[1680606466164,6.318,1851.8,1850.9,0.002]
[1680606466333,6.318,1851.8,1850.0,1.65372849]
[1680606466334,0.17281,1851.8,1850.0,1.65372849]
[1680606466520,0.51841,1851.8,1850.7,9.0]
[1680606466719,2.16,1851.7,1851.4,5.0]
[1680606466921,2.416,1851.6,1851.4,0.006]
[1680606467133,0.17283,1851.5,1850.9,0.002]
[1680606467458,0.17283,1851.5,1850.3,9.0]
[1680606467459,0.002,1851.4,1850.5,0.002]
[1680606467621,2.16,1851.4,1851.3,5.0]
[1680606467950,2.158,1853.4,1852.2,1.0]
[1680606468136,0.17261,1853.9,1853.3,4.88]
[1680606468310,0.3451,1854.6,1853.8,1.97490106]
[1680606468505,0.3451,1854.6,1853.8,1.84460106]
[1680606468506,0.089,1854.1,1853.8,1.84460106]
[1680606468746,2.03474915,1854.5,1854.4,5.0]
[1680606469065,0.006,1854.9,1854.7,5.0]
[1680606469209,0.004,1855.1,1854.9,7.754]
[1680606469408,0.17241,1856.0,1855.0,10.77720144]
[1680606469648,1.004,1856.1,1856.0,4.48]
[1680606469819,0.05088575,1856.1,1856.0,1.69097002]
[1680606470021,2.154,1856.9,1856.0,1.69097002]
[1680606470022,0.002,1857.2,1856.6,5.0]
[1680606470210,0.19429957,1857.2,1856.6,0.002]
[1680606470409,0.17085772,1858.1,1856.6,0.002]
[1680606470410,0.17218,1858.6,1857.4,0.576]
[1680606470611,0.15818258,1859.1,1858.4,5.311]
[1680606470913,0.0216568,1859.1,1858.7,10.58]
[1680606471109,13.5801267,1860.0,1859.0,3.274]
[1680606471418,2.68785489,1861.8,1860.7,2.6477457]
[1680606471612,2.65003372,1861.4,1861.1,2.6078811]
[1680606471912,0.17222125,1862.1,1861.7,20.3]
[1680606472128,0.68697,1863.3,1861.7,20.3]
[1680606472129,2.41686594,1866.5,1863.3,2.50871067]
[1680606472421,2.84840283,1869.0,1863.6,11.9242]
[1680606472422,1.20193,1863.7,1863.6,11.9242]
[1680606472627,5.002,1864.0,1863.6,143.75492168]
[1680606472829,0.34341,1863.7,1863.5,0.006]
[1680606473128,0.34341,1863.7,1861.4,2.65545601]
[1680606473129,0.424,1863.2,1863.1,5.0]
[1680606473331,0.34339,1863.8,1863.1,87.93179251]
[1680606473701,0.2839572,1864.7,1863.1,87.93179251]
[1680606473702,0.13119569,1865.7,1863.8,3.67605687]
[1680606473833,0.34307,1865.5,1863.8,78.07079251]
[1680606474168,4.07476949,1867.0,1865.3,10.74]
[1680606474452,4.07476949,1867.0,1863.4,5.355]
[1680606474453,0.17151,1865.7,1865.5,5.355]
[1680606474665,1.71619,1866.8,1865.5,82.19079251]
[1680606474824,1.885609,1866.8,1865.6,1.5043718]
[1680606475150,1.885609,1866.8,1865.5,55.32456929]
[1680606475151,0.17146,1866.3,1865.5,55.32456929]
[1680606475358,0.17147,1866.2,1866.1,1.0]
[1680606475526,0.68585,1866.3,1866.1,10.3676]
[1680606475852,1.71419,1866.8,1866.1,10.3676]
[1680606475853,1.71419,1866.8,1866.7,1.0]
[1680606476153,0.0494577,1868.8,1867.5,2.67774762]
[1680606476351,0.34235,1869.4,1868.6,5.301]
[1680606476653,0.17119,1869.3,1869.2,4.49126723]
[1680606476855,0.02119,1869.3,1867.2,1.0]
[1680606477058,0.02119,1869.3,1866.9,8.0]
[1680606477059,2.22577,1869.0,1868.4,1.0]
[1680606477368,18.4493,1870.0,1868.8,0.154]
[1680606477369,0.008,1869.5,1868.8,0.154]
[1680606477575,0.00545304,1869.2,1868.9,10.371]
[1680606477742,0.17113,1869.9,1868.9,12.517]
[1680606477953,9.0,1870.4,1870.3,7.2]
[1680606478267,9.6839,1871.4,1871.3,5.0]
[1680606478438,0.177,1871.4,1871.3,5.303]
[1680606478640,0.171,1871.4,1871.3,148.2694118]
[1680606478840,0.008,1872.0,1871.0,55.32056929]
[1680606478841,0.51282,1872.0,1871.0,55.32056929]
[1680606479040,5.301,1871.2,1871.0,0.004]
[1680606479241,1.19728,1870.9,1870.2,3.02096426]
[1680606479441,1.19728,1870.9,1870.1,0.69598991]
[1680606479442,0.52095,1870.7,1870.6,8.02096426]
[1680606479645,8.91441957,1870.7,1869.7,0.47905]
[1680606479874,8.91441957,1870.7,1869.4,2.138]
[1680606479875,0.002,1871.0,1868.1,37.62891776]
[1680606480169,0.652,1870.3,1869.4,0.79825838]
[1680606480378,6.79886,1870.9,1867.5,37.62891776]
[1680606480379,5.301,1869.5,1867.7,1.0]
[1680606480668,10.7,1869.1,1867.4,0.008]
[1680606480868,0.12852,1867.4,1867.0,0.002]
[1680606481040,0.12852,1867.4,1867.3,8.274]
[1680606481239,0.12852,1867.4,1865.5,5.0]
[1680606481454,0.12852,1867.4,1866.0,5.301]
[1680606481655,3.5,1869.0,1868.0,1.0]
[1680606481855,0.008,1869.1,1867.8,2.296]
[1680606482187,1.5,1870.5,1869.2,1.0]
[1680606482188,0.5,1870.5,1869.2,1.0]
[1680606482333,0.5,1870.5,1868.9,8.0]
[1680606482334,0.5,1870.5,1869.3,1.54899633]
[1680606482667,0.5,1870.5,1870.4,1.69049544]
[1680606482868,0.1,1871.2,1869.7,1.0]
[1680606483071,0.1,1871.2,1870.2,3.274]
[1680606483233,0.055523,1870.5,1870.1,0.59494364]
[1680606483572,0.22826,1871.2,1868.9,1.0]
[1680606483573,5.301,1870.4,1868.9,1.0]
[1680606483774,1.0,1870.2,1868.6,0.004]
[1680606484068,9.51321,1870.6,1870.5,0.392]
[1680606484303,1.0,1868.9,1868.3,5.0]
[1680606484511,1.0,1868.9,1868.3,0.008]
[1680606484512,0.12843,1868.8,1868.3,0.008]
[1680606484633,0.12843,1868.8,1868.0,5.0]
[1680606484634,0.12843,1868.8,1868.7,5.0]
[1680606484829,2.29038496,1868.8,1868.7,5.008]
[1680606485093,1.0,1868.9,1868.7,6.56240208]
[1680606485232,1.52435829,1869.1,1868.7,1.004]
[1680606485433,0.10079849,1869.0,1868.7,0.002]
[1680606485671,8.10079849,1868.4,1868.3,1.67156783]
[1680606485871,5.275,1868.4,1868.0,0.002]
[1680606486074,5.275,1868.4,1866.9,0.006]
[1680606486075,0.91288,1868.3,1866.9,0.006]
[1680606486240,8.10079849,1867.5,1867.4,5.0]
[1680606486435,8.10079849,1867.5,1866.3,0.002]
[1680606486436,0.10079849,1867.1,1866.6,5.0]
[1680606486758,0.10079849,1867.1,1866.6,5.002]
[1680606486759,3.17365,1867.0,1866.6,5.002]
[1680606486958,3.491615,1867.0,1866.6,0.002]
[1680606487159,3.491615,1867.0,1865.5,2.2]
[1680606487160,0.10679849,1866.8,1866.7,0.89320151]
[1680606487336,3.17365,1867.0,1865.6,1.0]
[1680606487337,2.79,1867.0,1866.1,0.006]
[1680606487541,0.502,1867.6,1867.3,8.08439753]
[1680606487753,1.671,1868.3,1867.8,1.53593998]
[1680606487754,0.006,1868.1,1867.8,1.53593998]
[1680606487949,0.25681,1869.1,1867.9,0.5]
[1680606488166,0.38527,1868.8,1868.7,7.2]
[1680606488365,0.12842,1868.8,1868.7,21.18568791]
[1680606488565,0.12842,1868.8,1868.7,1.71168791]
[1680606488753,0.12842,1868.8,1868.7,0.006]
[1680606488953,0.12842,1868.8,1868.7,16.206]
[1680606489179,5.288,1868.8,1868.6,0.006]
[1680606489341,0.5288,1868.7,1867.4,2.2]
[1680606489542,0.27959257,1868.1,1867.9,0.72040743]
[1680606489737,0.12847,1868.0,1867.9,0.72040743]
[1680606489937,2.27047,1868.0,1867.9,0.19798057]
[1680606490165,0.93448943,1868.0,1867.9,0.19398057]
[1680606490356,0.80601943,1867.6,1867.2,50.0]
[1680606490682,15.07901943,1867.3,1867.2,29.762604]
[1680606490977,15.07901943,1867.3,1867.2,0.00097673]
[1680606490978,6.21411943,1867.3,1867.2,0.00097673]
[1680606491277,6.21411943,1867.3,1865.1,1.57130365]
[1680606491278,1.0,1865.3,1865.1,1.57130365]
[1680606491484,0.21436,1866.0,1865.0,0.006]
[1680606491485,0.006,1865.9,1865.0,0.006]
[1680606491639,0.1072,1865.6,1865.0,1.46927477]
[1680606491840,0.10722,1865.2,1864.9,0.002]
[1680606492053,0.002,1866.1,1866.0,7.952]
[1680606492265,5.301,1867.1,1866.9,15.152]
[1680606492266,0.00097673,1867.1,1866.9,15.152]
[1680606492441,1.048,1868.6,1867.3,12.952]
[1680606492442,0.006,1867.4,1867.3,12.952]
[1680606492641,0.21407,1868.6,1868.0,7.2]
[1680606492642,1.0,1868.1,1868.0,7.2]
[1680606492840,1.0,1868.1,1868.0,0.008]
[1680606492841,1.048,1868.1,1868.0,0.008]
[1680606493039,0.008,1868.7,1868.6,5.0]
[1680606493248,0.11102,1868.7,1868.6,0.002]
[1680606493444,2.14,1868.8,1868.7,5.0]
[1680606493689,2.142,1869.1,1869.0,7.2]
[1680606493844,2.142,1869.1,1868.7,0.004]
[1680606493845,0.109,1869.1,1868.7,0.008]
[1680606494048,1.042,1868.7,1867.5,5.741]
[1680606494241,0.10704,1868.5,1867.7,1.69625176]
[1680606494448,0.10704,1868.5,1867.9,2.2]
[1680606494752,0.435,1869.2,1869.1,3.196]
[1680606494753,0.009,1869.2,1869.1,3.196]
[1680606494966,0.21394,1869.7,1868.9,0.996]
[1680606495166,0.008,1869.8,1869.4,2.2]
[1680606495364,0.008,1869.8,1869.2,6.735]
[1680606495365,0.10697,1869.7,1869.2,0.002]
[1680606495579,0.10697,1869.7,1869.6,2.2]
[1680606495770,0.10697,1869.7,1869.4,0.994]
[1680606495771,0.10697,1869.7,1869.4,0.002]
[1680606496079,1.5,1868.8,1866.9,2.14]
[1680606496280,5.301,1868.3,1867.2,5.741]
[1680606496479,5.301,1868.3,1867.4,5.741]
[1680606496480,0.32119,1868.0,1867.4,5.741]
[1680606496778,0.32119,1868.0,1867.4,0.008]
[1680606496978,0.10708,1867.8,1866.7,1.0]
[1680606497181,3.85928798,1867.8,1866.8,5.741]
[1680606497495,0.10709,1867.6,1867.5,2.2]
[1680606497641,0.002,1867.9,1867.3,1.0]
[1680606497642,0.002,1868.0,1867.9,16.2]
[1680606497843,0.42805,1869.0,1867.8,0.492]
[1680606497844,0.21405,1868.8,1868.5,2.2]
[1680606498168,5.273,1870.2,1868.5,2.2]
[1680606498169,0.13183105,1871.1,1869.3,5.741]
[1680606498418,22.3932291,1873.2,1869.3,5.741]
[1680606498419,0.42733,1872.1,1870.0,5.741]
[1680606498541,0.21371,1871.7,1870.5,5.741]
[1680606498743,0.21371,1871.7,1870.7,5.741]
[1680606498989,6.288,1871.3,1870.7,0.008]
[1680606499282,6.288,1871.3,1870.5,0.002]
[1680606499283,1.0,1870.7,1870.5,0.002]
[1680606499455,13.301,1870.9,1869.7,0.008]
[1680606499456,0.74841,1870.6,1869.7,0.008]
[1680606499655,5.301,1870.2,1869.1,1.58433907]
[1680606499866,0.74869,1869.9,1869.0,0.002]
[1680606500071,0.74869,1869.9,1868.6,1.87253982]
[1680606500072,1.0,1869.6,1868.6,1.87253982]
[1680606500275,9.0,1868.8,1868.7,5.741]
[1680606500599,2.64,1869.8,1868.7,5.741]
[1680606500600,0.20528964,1869.5,1868.8,1.3311]
[1680606500899,0.107,1869.1,1868.9,0.5]
[1680606501096,0.002,1870.5,1868.9,2.638]
[1680606501298,0.10692,1870.5,1870.4,5.741]
[1680606501502,0.10692,1870.5,1870.4,5.749]
[1680606501797,0.10692,1870.5,1867.8,5.0]
[1680606501798,0.10699,1869.2,1867.8,5.0]
[1680606501984,0.10699,1869.2,1866.9,5.281]
[1680606501985,7.78071,1870.4,1869.5,0.004]
[1680606502169,7.78071,1870.4,1868.7,1.87213]
[1680606502170,0.002,1869.2,1868.7,1.87213]
[1680606502376,2.13863,1870.4,1868.7,1.87213]
[1680606502377,0.32129658,1869.1,1869.0,10.88654221]
[1680606502578,0.006,1870.3,1870.0,5.741]
[1680606502769,1.49716,1870.2,1870.0,0.002]
[1680606502972,1.49716,1870.2,1868.7,4.59413]
[1680606502973,0.64189,1869.5,1868.7,4.59413]
[1680606503162,0.74887,1869.5,1869.4,3.274]
[1680606503389,0.74887,1869.5,1869.4,7.40791218]
[1680606503588,0.002,1870.1,1869.9,10.33513]
[1680606503764,8.95999594,1871.6,1870.5,5.741]
[1680606503765,5.288,1871.3,1870.5,5.741]
[1680606504096,1.81758,1870.6,1870.3,0.006]
[1680606504260,0.62866165,1870.6,1870.5,10.33513]
[1680606504463,0.52175165,1870.6,1870.5,4.59413]
[1680606504662,0.52175165,1870.6,1870.3,4.59413]
[1680606504663,0.62866165,1870.6,1870.3,4.59413]
[1680606504882,0.62866165,1870.6,1870.5,4.54613]
[1680606505101,0.10688,1871.1,1871.0,9.54338]
[1680606505263,0.34259258,1871.1,1871.0,0.002]
[1680606505463,0.34259258,1871.1,1869.9,4.54338]
[1680606505464,0.10688,1871.1,1870.6,5.741]
[1680606505769,0.10688,1871.1,1870.9,4.54338]
[1680606505770,0.10689,1871.1,1870.9,4.54338]
[1680606506073,0.10689,1871.1,1870.8,0.002]
[1680606506272,0.10689,1871.1,1870.5,1.89710407]
[1680606506273,0.10689,1871.1,1870.9,3.26804386]
[1680606506600,0.10689,1871.1,1870.9,4.53788]
[1680606507098,0.10689,1871.1,1870.9,1.50825502]
[1680606507261,0.42949,1871.4,1871.0,7.80913]
[1680606507262,0.42749,1871.4,1871.0,7.80913]
[1680606507464,0.55507185,1871.9,1871.5,7.80638]
[1680606507668,0.55307185,1871.9,1871.7,8.224]
[1680606507901,0.55307185,1871.9,1871.8,10.02571514]
[1680606508105,0.43116,1872.9,1872.7,7.75088]
[1680606508410,0.002,1872.9,1872.8,8.96225]
[1680606508717,0.21351,1873.4,1873.3,8.78897423]
[1680606509001,0.32194258,1873.7,1873.6,6.30070273]
[1680606509158,0.62022,1873.7,1873.6,7.80288]
[1680606509515,0.62622,1873.7,1873.6,0.002]
[1680606509667,2.77816258,1873.7,1873.6,0.002]
[1680606509981,2.77816258,1873.7,1873.4,5.0]
[1680606509982,0.5,1873.6,1873.4,5.0]
[1680606510182,0.89774,1873.7,1873.6,9.52288]
[1680606510382,0.0854,1873.5,1873.4,3.278]
[1680606510700,0.02878712,1874.0,1873.4,3.278]
[1680606510701,7.3,1875.0,1874.2,4.52288]
[1680606510864,7.3,1875.0,1874.4,5.301]
[1680606510865,7.308,1875.0,1874.4,5.301]
[1680606511063,7.302,1875.0,1874.4,0.0045]
[1680606511317,3.096638,1875.0,1874.6,1.75795346]
[1680606511517,3.36857058,1875.0,1874.9,9.96048494]
[1680606511836,3.36857058,1875.0,1874.2,37.58091776]
[1680606511837,4.92602058,1875.0,1873.2,8.99725]
[1680606511986,1.0,1873.8,1872.8,5.0]
[1680606512186,0.1,1873.8,1873.5,5.0]
[1680606512412,0.59763,1874.1,1873.8,7.60752612]
[1680606512413,0.002,1873.9,1873.8,7.60752612]
[1680606512643,1.4534,1874.1,1874.0,7.60477612]
[1680606512644,1.4514,1874.1,1874.0,7.60477612]
[1680606512934,0.5,1873.9,1873.5,7.60477612]
[1680606513220,1.48136388,1873.6,1873.5,0.002]
[1680606513425,0.00039,1873.6,1873.5,0.002]
[1680606513626,1.70933,1874.3,1874.2,12.60402612]
[1680606513829,0.10919723,1874.7,1874.2,0.002]
[1680606513989,0.59755,1874.3,1874.2,16.60402612]
[1680606514324,0.004,1874.9,1874.8,17.80402612]
[1680606514628,0.08733,1874.9,1874.8,7.60602612]
[1680606514784,0.62223743,1875.4,1875.3,7.60402612]
[1680606515007,0.08531,1875.4,1875.3,7.60602612]
[1680606515184,0.17062,1875.5,1875.3,7.60602612]
[1680606515185,0.01752585,1875.8,1875.7,5.0]
[1680606515422,0.102,1876.2,1876.0,7.60402612]
[1680606515750,1.58225,1876.1,1876.0,0.002]
[1680606515886,1.58225,1876.1,1875.7,0.002]
[1680606515887,0.58225,1876.1,1875.7,0.002]
[1680606516087,0.58225,1876.1,1875.5,1.95333465]
[1680606516346,2.132,1876.0,1875.8,7.60402612]
[1680606516487,2.132,1876.0,1875.8,0.002]
[1680606516488,0.08529,1875.9,1875.8,0.002]
[1680606516686,0.08529,1875.9,1874.2,0.002]
[1680606516687,1.0,1875.0,1874.2,0.002]
[1680606516942,0.59739,1874.8,1874.3,9.19146571]
[1680606517255,1.70643,1875.3,1875.2,7.58602612]
[1680606517426,3.07591,1875.3,1875.2,12.50270612]
[1680606517624,3.07591,1875.3,1875.1,0.002]
[1680606517625,3.15683,1875.3,1875.1,0.006]
[1680606517804,3.15683,1875.3,1873.8,7.433]
[1680606517805,0.307591,1875.2,1874.2,7.40070612]
[1680606517993,0.08532,1875.1,1874.3,1.97361135]
[1680606518324,0.08532,1875.1,1873.8,5.0]
[1680606518325,4.07361,1874.0,1873.8,0.002]
[1680606518488,1.25292,1873.7,1872.5,7.40070612]
[1680606518687,0.25656,1873.7,1872.6,1.68028415]
[1680606518895,0.25656,1873.7,1872.4,0.002]
[1680606518896,0.08543,1872.8,1872.4,0.002]
[1680606519095,1.87953,1872.8,1872.0,0.002]
[1680606519328,1.02547,1872.3,1872.2,1.77681401]
[1680606519531,1.02547,1872.3,1872.1,7.40270612]
[1680606519696,1.02986,1872.3,1872.2,5.65554]
[1680606519891,1.45274,1872.3,1872.2,0.002]
[1680606520148,4.4433,1872.3,1872.1,7.31723612]
[1680606520306,3.99675,1872.2,1872.1,7.25313612]
[1680606520494,3.99675,1872.2,1872.1,7.18903612]
[1680606520495,5.14239,1872.2,1872.1,7.18903612]
[1680606520695,2.74870388,1872.1,1871.9,0.006]
[1680606520935,4.7034,1872.0,1871.9,5.0]
[1680606521143,0.002,1872.2,1872.0,5.5]
[1680606521320,0.002,1872.2,1872.1,2.29615506]
[1680606521510,1.70724,1874.4,1873.5,4.03533388]
[1680606521695,1.70724,1874.4,1873.5,0.76133388]
[1680606521696,0.002,1873.6,1873.5,0.76133388]
[1680606521896,0.06404,1873.6,1873.5,5.76133388]
[1680606522101,0.06404,1873.6,1873.5,0.76933388]
[1680606522333,0.06404,1873.6,1873.5,0.76733388]
[1680606522634,0.002,1874.1,1873.5,0.76733388]
[1680606522635,0.64021,1874.4,1873.8,5.0]
[1680606522797,0.19207,1874.3,1873.9,1.58940608]
[1680606522996,0.19207,1874.3,1873.5,0.76733388]
[1680606522997,2.665399,1874.3,1873.6,0.006]
[1680606523226,2.665399,1874.3,1873.0,0.6263314]
[1680606523227,0.99675,1873.8,1873.0,0.6263314]
[1680606523408,0.99675,1873.8,1872.6,5.0]
[1680606523409,2.37014,1873.3,1872.6,0.002]
[1680606523605,2.37013,1873.3,1872.1,0.008]
[1680606523835,2.37013,1873.3,1871.8,0.002]
[1680606524135,0.44852,1872.8,1872.7,7.2]
[1680606524298,0.44852,1872.8,1872.7,5.008]
[1680606524497,0.44852,1872.8,1872.7,7.208]
[1680606524722,0.44852,1872.8,1872.7,0.008]
[1680606524926,0.44852,1872.8,1872.4,0.008]
[1680606525123,2.136,1873.2,1872.6,5.0]
[1680606525308,1.87826,1873.3,1872.6,5.008]
[1680606525309,0.19222,1872.8,1872.6,5.008]
[1680606525615,0.44852,1872.8,1872.7,2.2]
[1680606525816,0.44852,1872.8,1872.6,0.008]
[1680606526154,0.12815,1872.7,1872.4,0.008]
[1680606526461,0.7049,1872.6,1872.5,7.2]
[1680606526600,0.7049,1872.6,1872.5,2.202]
[1680606526795,0.7049,1872.6,1872.5,2.2]
[1680606527035,0.7049,1872.6,1872.0,0.004]
[1680606527036,0.19225,1872.4,1872.0,0.004]
[1680606527210,0.19225,1872.4,1871.0,2.2]
[1680606527211,5.62147,1872.2,1871.0,2.2]
[1680606527444,5.62347,1872.2,1871.0,0.002]
[1680606527601,5.62347,1872.2,1871.1,2.2]
[1680606527602,5.138,1872.1,1871.1,2.2]
[1680606527796,0.5,1871.7,1871.1,2.2]
[1680606528041,1.73126,1871.5,1870.7,0.004]
[1680606528237,5.301,1871.3,1870.0,0.006]
[1680606528457,5.301,1870.8,1869.9,2.2]
[1680606528634,0.19245,1870.6,1869.7,0.002]
[1680606528798,0.19245,1870.6,1869.3,2.2]
[1680606528799,0.69245,1870.6,1869.3,2.2]
[1680606529001,12.84,1870.5,1869.4,5.741]
[1680606529262,1.0908,1870.2,1869.4,5.749]
[1680606529397,0.5,1870.1,1869.3,1.0]
[1680606529598,0.19252,1869.9,1869.2,5.002]
[1680606529901,2.61538594,1869.9,1869.3,0.02200667]
[1680606530130,2.61538594,1869.9,1868.9,0.002]
[1680606530131,10.7,1869.5,1868.9,0.002]
[1680606530355,1.09128,1869.4,1868.8,0.002]
[1680606530638,2.14,1869.3,1868.7,0.02201373]
[1680606530797,0.1926,1869.2,1868.5,5.741]
[1680606530997,0.1926,1869.2,1868.7,1.69004777]
[1680606531237,0.1926,1869.2,1868.4,2.2]
[1680606531238,2.14,1869.1,1868.4,0.002]
[1680606531437,2.14,1869.1,1867.7,5.0]
[1680606531438,0.44944,1868.9,1868.1,1.52803453]
[1680606531611,0.44944,1868.9,1868.4,2.2]
[1680606531817,0.44944,1868.9,1868.1,1.89943798]
[1680606531818,0.95544,1868.9,1868.2,5.743]
[1680606532012,0.95544,1868.9,1868.0,0.004]
[1680606532013,2.14,1868.8,1868.0,0.004]
[1680606532338,5.301,1868.3,1867.2,0.004]
[1680606532537,5.301,1868.3,1867.1,0.002]
[1680606532538,5.301,1867.9,1867.0,0.002]
[1680606532742,0.19275,1867.7,1867.1,0.0220326]
[1680606532943,0.19275,1867.7,1867.3,7.941]